[Event "*** Titled Tuesday Blitz"]
[Site "Chess.com"]
[Date "2021.02.09"]
[Round "2"]
[White "DrMamaliga"]
[Black "RobertoJBM"]
[Result "0-1"]
[WhiteElo "2332"]
[BlackElo "2721"]
[TimeControl "180+1"]
[EndTime "10:21:23 PST"]
[Termination "RobertoJBM won by resignation"]

1. c4 {[%clk 0:03:00.9]} 1... c6 {[%clk 0:02:59.9]} 2. Nf3 {[%clk 0:02:59.7]}
2... d5 {[%clk 0:03:00.8]} 3. e3 {[%clk 0:02:59]} 3... Nf6 {[%clk 0:03:00.5]} 4.
Nc3 {[%clk 0:02:58.5]} 4... a6 {[%clk 0:02:59.6]} 5. b3 {[%clk 0:02:58]} 5...
Bf5 {[%clk 0:02:58.4]} 6. Bb2 {[%clk 0:02:58]} 6... e6 {[%clk 0:02:58.6]} 7. Be2
{[%clk 0:02:58.3]} 7... h6 {[%clk 0:02:58.6]} 8. O-O {[%clk 0:02:58.2]} 8...
Nbd7 {[%clk 0:02:58.4]} 9. d4 {[%clk 0:02:56.8]} 9... Bd6 {[%clk 0:02:57.6]} 10.
Bd3 {[%clk 0:02:56.9]} 10... Ne4 {[%clk 0:02:52.1]} 11. Qc2 {[%clk 0:02:55.5]}
11... Ndf6 {[%clk 0:02:50.2]} 12. Nd2 {[%clk 0:02:55.2]} 12... Nxd2 {[%clk
0:02:49.8]} 13. Qxd2 {[%clk 0:02:56.1]} 13... Bxd3 {[%clk 0:02:48.9]} 14. Qxd3
{[%clk 0:02:57]} 14... O-O {[%clk 0:02:27.9]} 15. e4 {[%clk 0:02:56.7]} 15...
dxe4 {[%clk 0:02:25.5]} 16. Nxe4 {[%clk 0:02:57.6]} 16... Nxe4 {[%clk
0:02:26.2]} 17. Qxe4 {[%clk 0:02:56.2]} 17... Qf6 {[%clk 0:02:26.2]} 18. Rab1
{[%clk 0:02:54.4]} 18... Qe7 {[%clk 0:02:18.5]} 19. Rfe1 {[%clk 0:02:53.1]}
19... Rfe8 {[%clk 0:02:18.6]} 20. Rbd1 {[%clk 0:02:47.7]} 20... Rad8 {[%clk
0:02:17.9]} 21. g3 {[%clk 0:02:38.1]} 21... a5 {[%clk 0:02:15.1]} 22. Re2 {[%clk
0:02:28.6]} 22... a4 {[%clk 0:02:14.9]} 23. Rde1 {[%clk 0:02:25.8]} 23... Bb4
{[%clk 0:02:07.4]} 24. Rd1 {[%clk 0:02:22.7]} 24... axb3 {[%clk 0:02:07.6]} 25.
axb3 {[%clk 0:02:23.6]} 25... Qd7 {[%clk 0:02:03.9]} 26. Qe5 {[%clk 0:02:18.2]}
26... Bd6 {[%clk 0:02:02.5]} 27. Qe3 {[%clk 0:02:13.5]} 27... b5 {[%clk
0:02:00.7]} 28. cxb5 {[%clk 0:02:01.8]} 28... cxb5 {[%clk 0:02:00.6]} 29. d5
{[%clk 0:02:02.3]} 29... e5 {[%clk 0:01:58.5]} 30. Rc2 {[%clk 0:02:00.7]} 30...
Bf8 {[%clk 0:01:38.7]} 31. Qb6 {[%clk 0:01:44.8]} 31... Qf5 {[%clk 0:01:22.8]}
32. Rcd2 {[%clk 0:01:28.3]} 32... Bb4 {[%clk 0:01:03.3]} 33. Rd3 {[%clk
0:01:18.6]} 33... e4 {[%clk 0:00:59.7]} 34. Qd4 {[%clk 0:01:15.7]} 34... Bf8
{[%clk 0:00:59.1]} 35. Re3 {[%clk 0:01:15.6]} 35... Re7 {[%clk 0:00:52.9]} 36.
d6 {[%clk 0:01:08.6]} 36... Re6 {[%clk 0:00:49.6]} 37. Ba3 {[%clk 0:00:50]}
37... Rd7 {[%clk 0:00:46.4]} 38. Qc5 {[%clk 0:00:37.5]} 38... Qxc5 {[%clk
0:00:43.8]} 39. Bxc5 {[%clk 0:00:38.4]} 39... f5 {[%clk 0:00:43.7]} 40. f3
{[%clk 0:00:35.7]} 40... Bxd6 {[%clk 0:00:22.2]} 41. Bxd6 {[%clk 0:00:32.9]}
41... Rexd6 {[%clk 0:00:22.4]} 42. Rxd6 {[%clk 0:00:33.8]} 42... Rxd6 {[%clk
0:00:23.3]} 43. fxe4 {[%clk 0:00:34.2]} 43... Re6 {[%clk 0:00:11.3]} 44. e5
{[%clk 0:00:30]} 44... Kf7 {[%clk 0:00:11.5]} 45. Kf2 {[%clk 0:00:29.9]} 45...
Rc6 {[%clk 0:00:11.6]} 46. Kf3 {[%clk 0:00:26]} 46... Ke6 {[%clk 0:00:12]} 47.
Rd3 {[%clk 0:00:24.5]} 47... Kxe5 {[%clk 0:00:11]} 48. Re3+ {[%clk 0:00:23.9]}
48... Kf6 {[%clk 0:00:11]} 49. Rd3 {[%clk 0:00:24.2]} 49... Re6 {[%clk
0:00:10.9]} 50. Rd5 {[%clk 0:00:23.7]} 50... Re5 {[%clk 0:00:11.2]} 51. Rd6+
{[%clk 0:00:24]} 51... Re6 {[%clk 0:00:10.6]} 52. Rd5 {[%clk 0:00:23.9]} 52...
Rb6 {[%clk 0:00:10.8]} 53. b4 {[%clk 0:00:20]} 53... g5 {[%clk 0:00:10.9]} 54.
Rc5 {[%clk 0:00:20.1]} 54... Kg6 {[%clk 0:00:11.1]} 55. Rd5 {[%clk 0:00:19.7]}
55... Kf6 {[%clk 0:00:10.9]} 56. Rc5 {[%clk 0:00:19.9]} 56... Ke6 {[%clk
0:00:11.4]} 57. Ke3 {[%clk 0:00:19.1]} 57... h5 {[%clk 0:00:11]} 58. Kf3 {[%clk
0:00:18.6]} 58... Kf6 {[%clk 0:00:11.4]} 59. h4 {[%clk 0:00:18.3]} 59... gxh4
{[%clk 0:00:11.4]} 60. gxh4 {[%clk 0:00:19.2]} 60... Kg6 {[%clk 0:00:10.9]} 61.
Kf4 {[%clk 0:00:19.4]} 61... Rd6 {[%clk 0:00:10.4]} 62. Rxb5 {[%clk 0:00:18.4]}
62... Rd4+ {[%clk 0:00:10.6]} 63. Kf3 {[%clk 0:00:18.4]} 63... Rxh4 {[%clk
0:00:10.1]} 64. Rb6+ {[%clk 0:00:18.1]} 64... Kg5 {[%clk 0:00:10.5]} 65. b5
{[%clk 0:00:18.6]} 65... Rb4 {[%clk 0:00:11]} 66. Rb8 {[%clk 0:00:18.3]} 66...
Rb3+ {[%clk 0:00:11.5]} 67. Kg2 {[%clk 0:00:17.7]} 67... h4 {[%clk 0:00:11.8]}
68. b6 {[%clk 0:00:17.9]} 68... h3+ {[%clk 0:00:12]} 69. Kh2 {[%clk 0:00:18.4]}
69... Kg4 {[%clk 0:00:12.9]} 70. Rg8+ {[%clk 0:00:18]} 70... Kf4 {[%clk
0:00:13.2]} 71. Rh8 {[%clk 0:00:17.7]} 71... Rxb6 {[%clk 0:00:12]} 72. Rxh3
{[%clk 0:00:16.2]} 72... Rg6 {[%clk 0:00:10.9]} 73. Ra3 {[%clk 0:00:13.2]} 73...
Ke4 {[%clk 0:00:10.3]} 74. Ra4+ {[%clk 0:00:12.4]} 74... Ke3 {[%clk 0:00:09.9]}
75. Ra3+ {[%clk 0:00:12.7]} 75... Kf4 {[%clk 0:00:09.9]} 76. Ra4+ {[%clk
0:00:12.7]} 76... Kf3 {[%clk 0:00:10]} 77. Ra3+ {[%clk 0:00:12.5]} 77... Kf4
{[%clk 0:00:09.9]} 78. Ra4+ {[%clk 0:00:12.6]} 78... Kg5 {[%clk 0:00:10.5]} 79.
Kg3 {[%clk 0:00:12.1]} 79... Rc6 {[%clk 0:00:10.8]} 80. Ra3 {[%clk 0:00:11.4]}
80... Rc4 {[%clk 0:00:10.7]} 81. Rb3 {[%clk 0:00:11.2]} 81... Rg4+ {[%clk
0:00:10.6]} 82. Kf3 {[%clk 0:00:11.5]} 82... Ra4 {[%clk 0:00:11.5]} 83. Rc3
{[%clk 0:00:11.2]} 83... Rh4 {[%clk 0:00:10.7]} 84. Kg3 {[%clk 0:00:09.8]} 84...
f4+ {[%clk 0:00:11]} 85. Kf2 {[%clk 0:00:10.2]} 85... Kg4 {[%clk 0:00:11.9]} 86.
Rc8 {[%clk 0:00:09.4]} 86... Rh2+ {[%clk 0:00:11.4]} 87. Kf1 {[%clk 0:00:09.3]}
87... Ra2 {[%clk 0:00:12.3]} 88. Rc3 {[%clk 0:00:07.7]} 88... Rb2 {[%clk
0:00:12.1]} 89. Rd3 {[%clk 0:00:07.5]} 89... Rb8 {[%clk 0:00:10.3]} 90. Ra3
{[%clk 0:00:07.5]} 90... Re8 {[%clk 0:00:10.6]} 91. Rc3 {[%clk 0:00:07.4]} 91...
Re7 {[%clk 0:00:11]} 92. Ra3 {[%clk 0:00:07.5]} 92... Rh7 {[%clk 0:00:11.6]} 93.
Rd3 {[%clk 0:00:07]} 93... Rh6 {[%clk 0:00:12.1]} 94. Rc3 {[%clk 0:00:06.8]}
94... Rd6 {[%clk 0:00:12.7]} 95. Kf2 {[%clk 0:00:07]} 95... Rd2+ {[%clk
0:00:12.6]} 96. Kf1 {[%clk 0:00:07.5]} 96... Rh2 {[%clk 0:00:12.1]} 97. Ra3
{[%clk 0:00:07.4]} 97... Rc2 {[%clk 0:00:11.2]} 98. Rb3 {[%clk 0:00:07.2]} 98...
Kf5 {[%clk 0:00:11.2]} 99. Rb5+ {[%clk 0:00:07]} 99... Ke4 {[%clk 0:00:11.3]}
100. Rb4+ {[%clk 0:00:07.9]} 100... Ke3 {[%clk 0:00:11.3]} 101. Rb3+ {[%clk
0:00:08.1]} 101... Kd4 {[%clk 0:00:11.8]} 102. Rb4+ {[%clk 0:00:08.5]} 102...
Ke5 {[%clk 0:00:12.4]} 103. Rb3 {[%clk 0:00:08.4]} 103... Kf5 {[%clk 0:00:12.5]}
104. Rb5+ {[%clk 0:00:07.8]} 104... Kg4 {[%clk 0:00:12.3]} 105. Rb3 {[%clk
0:00:08.7]} 105... Rc5 {[%clk 0:00:12.1]} 106. Rb4 {[%clk 0:00:08.5]} 106... Kg3
{[%clk 0:00:11.5]} 107. Rb3+ {[%clk 0:00:08.4]} 107... f3 {[%clk 0:00:11.7]}
108. Rb1 {[%clk 0:00:08.5]} 108... Rh5 {[%clk 0:00:10.7]} 109. Kg1 {[%clk
0:00:05.9]} 109... f2+ {[%clk 0:00:10.1]} 0-1

[Event "*** Titled Tuesday Blitz"]
[Site "Chess.com"]
[Date "2021.02.09"]
[Round "3"]
[White "rasmussvane"]
[Black "Kovalchuk94"]
[Result "1-0"]
[WhiteElo "2886"]
[BlackElo "2640"]
[TimeControl "180+1"]
[EndTime "10:23:01 PST"]
[Termination "rasmussvane won by resignation"]

1. Nf3 {[%clk 0:03:00.9]} 1... Nf6 {[%clk 0:02:59.8]} 2. g3 {[%clk 0:03:01.2]}
2... g6 {[%clk 0:03:00.1]} 3. Bg2 {[%clk 0:03:01.5]} 3... Bg7 {[%clk 0:03:01]}
4. O-O {[%clk 0:03:02.1]} 4... O-O {[%clk 0:03:01.9]} 5. d4 {[%clk 0:03:02.8]}
5... d5 {[%clk 0:03:02.1]} 6. c4 {[%clk 0:03:03]} 6... c6 {[%clk 0:03:02.5]} 7.
Qb3 {[%clk 0:03:03.2]} 7... Qb6 {[%clk 0:03:01.9]} 8. Nc3 {[%clk 0:03:03.5]}
8... Rd8 {[%clk 0:03:00.6]} 9. Bd2 {[%clk 0:03:03.8]} 9... h6 {[%clk 0:02:43.8]}
10. Na4 {[%clk 0:03:03.4]} 10... Qxb3 {[%clk 0:02:37.3]} 11. axb3 {[%clk
0:03:04.3]} 11... Ne4 {[%clk 0:02:37.6]} 12. Nb6 {[%clk 0:02:56.3]} 12... Nxd2
{[%clk 0:02:35.2]} 13. Nxd2 {[%clk 0:02:54]} 13... axb6 {[%clk 0:02:35.3]} 14.
Rxa8 {[%clk 0:02:54.9]} 14... Na6 {[%clk 0:02:32.2]} 15. cxd5 {[%clk 0:02:54.1]}
15... cxd5 {[%clk 0:02:33.1]} 16. Rc1 {[%clk 0:02:52.4]} 1-0

[Event "*** Titled Tuesday Blitz"]
[Site "Chess.com"]
[Date "2021.02.09"]
[Round "3"]
[White "Astaneh"]
[Black "publicaccountcze"]
[Result "1-0"]
[WhiteElo "2640"]
[BlackElo "2263"]
[TimeControl "180+1"]
[EndTime "10:23:10 PST"]
[Termination "Astaneh won by resignation"]

1. d4 {[%clk 0:03:00.9]} 1... d5 {[%clk 0:02:59.3]} 2. Bf4 {[%clk 0:03:00.2]}
2... e6 {[%clk 0:02:58.4]} 3. e3 {[%clk 0:03:00.4]} 3... Nf6 {[%clk 0:02:57.8]}
4. c4 {[%clk 0:03:00.5]} 4... c5 {[%clk 0:02:55.9]} 5. Nc3 {[%clk 0:03:00]} 5...
Bd6 {[%clk 0:02:51]} 6. dxc5 {[%clk 0:02:57.2]} 6... Bxf4 {[%clk 0:02:33.1]} 7.
exf4 {[%clk 0:02:56.5]} 7... dxc4 {[%clk 0:02:31.5]} 8. Qxd8+ {[%clk 0:02:54.5]}
8... Kxd8 {[%clk 0:02:30.8]} 9. O-O-O+ {[%clk 0:02:53.3]} 9... Ke7 {[%clk
0:02:26]} 10. Bxc4 {[%clk 0:02:51.6]} 10... Ne4 {[%clk 0:02:21.6]} 11. Nxe4
{[%clk 0:02:50.7]} 1-0

[Event "*** Titled Tuesday Blitz"]
[Site "Chess.com"]
[Date "2021.02.09"]
[Round "3"]
[White "03revilo"]
[Black "starplatinum2030"]
[Result "0-1"]
[WhiteElo "2314"]
[BlackElo "2133"]
[TimeControl "180+1"]
[EndTime "10:23:54 PST"]
[Termination "starplatinum2030 won by resignation"]

1. e4 {[%clk 0:03:00.9]} 1... c5 {[%clk 0:02:58.6]} 2. Nf3 {[%clk 0:03:01.3]}
2... e6 {[%clk 0:02:58.1]} 3. d4 {[%clk 0:03:01.7]} 3... cxd4 {[%clk 0:02:59]}
4. Nxd4 {[%clk 0:03:02.6]} 4... Nc6 {[%clk 0:02:58.8]} 5. Nc3 {[%clk 0:03:02.4]}
5... Qc7 {[%clk 0:02:58.3]} 6. Qd3 {[%clk 0:03:01.9]} 6... a6 {[%clk 0:02:51.8]}
7. Nxc6 {[%clk 0:02:50.6]} 7... dxc6 {[%clk 0:02:41.2]} 8. Qg3 {[%clk
0:02:51.5]} 8... Qb6 {[%clk 0:02:30.9]} 9. Bd3 {[%clk 0:02:47.8]} 9... Nf6
{[%clk 0:02:29.6]} 10. O-O {[%clk 0:02:47.8]} 10... h5 {[%clk 0:02:26.3]} 11. e5
{[%clk 0:02:45.7]} 11... Nd5 {[%clk 0:02:23.2]} 12. Nxd5 {[%clk 0:02:45.5]}
12... cxd5 {[%clk 0:02:23.2]} 13. Be3 {[%clk 0:02:38.2]} 13... Qxb2 {[%clk
0:02:22.8]} 14. Rfb1 {[%clk 0:02:34.7]} 14... Qc3 {[%clk 0:02:19.7]} 15. Bb6
{[%clk 0:02:26.1]} 15... Bd7 {[%clk 0:02:15]} 16. Rb3 {[%clk 0:02:21.9]} 16...
Qxa1+ {[%clk 0:02:13.6]} 0-1

[Event "*** Titled Tuesday Blitz"]
[Site "Chess.com"]
[Date "2021.02.09"]
[Round "3"]
[White "Iskusnyh"]
[Black "LogoCzar"]
[Result "1-0"]
[WhiteElo "2586"]
[BlackElo "2398"]
[TimeControl "180+1"]
[EndTime "10:24:15 PST"]
[Termination "Iskusnyh won by resignation"]

1. d4 {[%clk 0:03:00.9]} 1... d5 {[%clk 0:02:59.5]} 2. c4 {[%clk 0:03:00.2]}
2... c6 {[%clk 0:02:59.3]} 3. Nf3 {[%clk 0:02:59.8]} 3... e6 {[%clk 0:02:59]} 4.
b3 {[%clk 0:02:58.2]} 4... Nd7 {[%clk 0:02:57.1]} 5. g3 {[%clk 0:02:42.4]} 5...
Bd6 {[%clk 0:02:55.9]} 6. Bg2 {[%clk 0:02:40.9]} 6... f5 {[%clk 0:02:55.5]} 7.
O-O {[%clk 0:02:39]} 7... Ngf6 {[%clk 0:02:55.5]} 8. Ba3 {[%clk 0:02:38.7]} 8...
Bxa3 {[%clk 0:02:52.2]} 9. Nxa3 {[%clk 0:02:38.2]} 9... O-O {[%clk 0:02:52.3]}
10. Qc1 {[%clk 0:02:36.8]} 10... b6 {[%clk 0:02:51.9]} 11. cxd5 {[%clk
0:02:33.2]} 11... cxd5 {[%clk 0:02:50.1]} 12. Qc6 {[%clk 0:02:32.5]} 12... Qe7
{[%clk 0:02:05.7]} 13. Qxa8 {[%clk 0:02:20.6]} 13... Qxa3 {[%clk 0:02:05.3]} 14.
Qc6 {[%clk 0:02:17.9]} 14... Ba6 {[%clk 0:02:04.3]} 15. Qxe6+ {[%clk 0:02:16.5]}
15... Kh8 {[%clk 0:02:02.6]} 16. Ne5 {[%clk 0:02:14.3]} 16... Nxe5 {[%clk
0:01:57.7]} 17. dxe5 {[%clk 0:02:12.9]} 1-0

[Event "*** Titled Tuesday Blitz"]
[Site "Chess.com"]
[Date "2021.02.09"]
[Round "3"]
[White "XDPS"]
[Black "ridnani2021"]
[Result "1-0"]
[WhiteElo "2733"]
[BlackElo "2354"]
[TimeControl "180+1"]
[EndTime "10:24:33 PST"]
[Termination "XDPS won by checkmate"]

1. e4 {[%clk 0:03:00.9]} 1... c5 {[%clk 0:02:59.2]} 2. Nf3 {[%clk 0:03:00.5]}
2... d6 {[%clk 0:02:59.5]} 3. d4 {[%clk 0:03:00.3]} 3... cxd4 {[%clk 0:03:00.4]}
4. Nxd4 {[%clk 0:03:01]} 4... Nf6 {[%clk 0:03:00.9]} 5. Nc3 {[%clk 0:02:59.7]}
5... a6 {[%clk 0:03:01.5]} 6. Be2 {[%clk 0:02:59.7]} 6... e5 {[%clk 0:03:01.5]}
7. Nf3 {[%clk 0:02:59.8]} 7... Be7 {[%clk 0:03:02]} 8. Bg5 {[%clk 0:03:00]} 8...
Be6 {[%clk 0:03:01.5]} 9. Bxf6 {[%clk 0:03:00.4]} 9... Bxf6 {[%clk 0:03:02.4]}
10. O-O {[%clk 0:03:01.2]} 10... O-O {[%clk 0:03:01.8]} 11. Nd5 {[%clk
0:03:01.6]} 11... Nd7 {[%clk 0:03:02]} 12. Bc4 {[%clk 0:03:02]} 12... Bxd5
{[%clk 0:02:59.6]} 13. Bxd5 {[%clk 0:03:00.8]} 13... Qc7 {[%clk 0:02:59.7]} 14.
c3 {[%clk 0:03:00.6]} 14... Rac8 {[%clk 0:02:59.6]} 15. Qe2 {[%clk 0:03:00]}
15... b5 {[%clk 0:02:59.4]} 16. Rfd1 {[%clk 0:03:00.2]} 16... Nb6 {[%clk
0:02:59.5]} 17. Rd3 {[%clk 0:02:59]} 17... Qe7 {[%clk 0:02:55.9]} 18. Rad1
{[%clk 0:02:58.4]} 18... Rfd8 {[%clk 0:02:55.9]} 19. Nd2 {[%clk 0:02:56.1]}
19... Bg5 {[%clk 0:02:54.8]} 20. Nf1 {[%clk 0:02:56.2]} 20... Qc7 {[%clk
0:02:51.5]} 21. Qh5 {[%clk 0:02:52.7]} 21... Bh6 {[%clk 0:02:41.6]} 22. Bb3
{[%clk 0:02:42.2]} 22... a5 {[%clk 0:02:28.5]} 23. a3 {[%clk 0:02:35.1]} 23...
Qe7 {[%clk 0:02:19]} 24. Rf3 {[%clk 0:02:17.5]} 24... Nc4 {[%clk 0:02:14.7]} 25.
Bxc4 {[%clk 0:02:10.8]} 25... Rxc4 {[%clk 0:02:13.1]} 26. Ng3 {[%clk 0:02:10.9]}
26... Qg5 {[%clk 0:02:11]} 27. Qxf7+ {[%clk 0:02:10.8]} 27... Kh8 {[%clk
0:02:09.7]} 28. Qf8+ {[%clk 0:02:11.7]} 28... Rxf8 {[%clk 0:02:09.4]} 29. Rxf8#
{[%clk 0:02:12.6]} 1-0

[Event "*** Titled Tuesday Blitz"]
[Site "Chess.com"]
[Date "2021.02.09"]
[Round "3"]
[White "Evachess2006"]
[Black "dropstoneDP"]
[Result "0-1"]
[WhiteElo "1625"]
[BlackElo "2966"]
[TimeControl "180+1"]
[EndTime "10:25:35 PST"]
[Termination "dropstoneDP won by resignation"]

1. e4 {[%clk 0:03:00.9]} 1... e5 {[%clk 0:02:57.8]} 2. Nf3 {[%clk 0:02:57.8]}
2... Nc6 {[%clk 0:02:57.8]} 3. Bc4 {[%clk 0:02:54.3]} 3... Nf6 {[%clk
0:02:55.7]} 4. d3 {[%clk 0:02:49]} 4... Bc5 {[%clk 0:02:55.4]} 5. c3 {[%clk
0:02:19.8]} 5... d6 {[%clk 0:02:54.7]} 6. d4 {[%clk 0:02:16.7]} 6... exd4 {[%clk
0:02:52.5]} 7. cxd4 {[%clk 0:02:12.7]} 7... Bb4+ {[%clk 0:02:52.7]} 8. Bd2
{[%clk 0:01:59.2]} 8... Nxe4 {[%clk 0:02:48.5]} 9. Qe2 {[%clk 0:01:38.1]} 9...
d5 {[%clk 0:02:40.6]} 10. Bd3 {[%clk 0:01:33]} 10... O-O {[%clk 0:02:39.4]} 11.
Bxb4 {[%clk 0:01:09.1]} 11... Nxb4 {[%clk 0:02:40.3]} 12. O-O {[%clk 0:01:06.2]}
12... Bf5 {[%clk 0:02:39.3]} 13. Na3 {[%clk 0:00:50.7]} 13... Nxd3 {[%clk
0:02:39]} 14. Qxd3 {[%clk 0:00:48.9]} 14... Ng3 {[%clk 0:02:39]} 15. Qd1 {[%clk
0:00:28.3]} 15... Nxf1 {[%clk 0:02:38.4]} 16. Qxf1 {[%clk 0:00:25.7]} 16... c6
{[%clk 0:02:38.4]} 17. Re1 {[%clk 0:00:25]} 17... Re8 {[%clk 0:02:37.9]} 18.
Rxe8+ {[%clk 0:00:24]} 18... Qxe8 {[%clk 0:02:38.8]} 0-1

[Event "*** Titled Tuesday Blitz"]
[Site "Chess.com"]
[Date "2021.02.09"]
[Round "3"]
[White "TokChess"]
[Black "SophieNikoladze"]
[Result "1-0"]
[WhiteElo "2403"]
[BlackElo "2193"]
[TimeControl "180+1"]
[EndTime "10:25:45 PST"]
[Termination "TokChess won on time"]

1. e4 {[%clk 0:03:00.9]} 1... d6 {[%clk 0:02:57.8]} 2. Nc3 {[%clk 0:03:00.9]}
2... Nf6 {[%clk 0:02:57.4]} 3. a4 {[%clk 0:03:00.8]} 3... e5 {[%clk 0:02:57.2]}
4. a5 {[%clk 0:02:58.7]} 4... Be7 {[%clk 0:02:57.4]} 5. Nf3 {[%clk 0:02:56.3]}
5... O-O {[%clk 0:02:57.7]} 6. d4 {[%clk 0:02:56]} 6... exd4 {[%clk 0:02:57.5]}
7. Nxd4 {[%clk 0:02:54.7]} 7... Nc6 {[%clk 0:02:58.4]} 8. a6 {[%clk 0:02:51.7]}
8... Nxd4 {[%clk 0:02:57.7]} 9. Qxd4 {[%clk 0:02:52.6]} 9... bxa6 {[%clk
0:02:57.8]} 10. Bxa6 {[%clk 0:02:47.3]} 10... Bxa6 {[%clk 0:02:56.3]} 11. Rxa6
{[%clk 0:02:48.2]} 11... c5 {[%clk 0:02:56.6]} 12. Qd3 {[%clk 0:02:44.9]} 12...
Ng4 {[%clk 0:02:55.8]} 13. Bf4 {[%clk 0:02:30.3]} 1-0

[Event "*** Titled Tuesday Blitz"]
[Site "Chess.com"]
[Date "2021.02.09"]
[Round "3"]
[White "soumeow"]
[Black "Flopezin"]
[Result "1-0"]
[WhiteElo "2227"]
[BlackElo "2389"]
[TimeControl "180+1"]
[EndTime "10:26:04 PST"]
[Termination "soumeow won by resignation"]

1. d4 {[%clk 0:03:00.2]} 1... Nf6 {[%clk 0:02:59.8]} 2. c4 {[%clk 0:02:58]} 2...
e6 {[%clk 0:03:00.3]} 3. Nf3 {[%clk 0:02:56.9]} 3... c5 {[%clk 0:03:00]} 4. d5
{[%clk 0:02:56.4]} 4... d6 {[%clk 0:02:59.9]} 5. Nc3 {[%clk 0:02:52]} 5... exd5
{[%clk 0:03:00.2]} 6. cxd5 {[%clk 0:02:51.9]} 6... g6 {[%clk 0:03:00.8]} 7. e4
{[%clk 0:02:49.7]} 7... Bg7 {[%clk 0:03:00.9]} 8. h3 {[%clk 0:02:49.8]} 8... O-O
{[%clk 0:03:00]} 9. Bd3 {[%clk 0:02:49.9]} 9... Na6 {[%clk 0:03:00.3]} 10. O-O
{[%clk 0:02:46.4]} 10... Nc7 {[%clk 0:03:00.1]} 11. Re1 {[%clk 0:02:39.5]} 11...
b6 {[%clk 0:03:00]} 12. a4 {[%clk 0:02:31.4]} 12... Ba6 {[%clk 0:02:58.6]} 13.
Nb5 {[%clk 0:02:29.8]} 13... Bxb5 {[%clk 0:02:32.7]} 14. axb5 {[%clk 0:02:30.7]}
14... a6 {[%clk 0:02:33.2]} 15. bxa6 {[%clk 0:02:19.8]} 15... b5 {[%clk
0:02:33.1]} 16. Bf4 {[%clk 0:02:04.3]} 16... c4 {[%clk 0:02:27.8]} 17. Bc2
{[%clk 0:02:02.8]} 17... Rxa6 {[%clk 0:02:27.3]} 18. Rxa6 {[%clk 0:01:26.3]}
18... Nxa6 {[%clk 0:02:28.2]} 19. Nd4 {[%clk 0:01:26.1]} 19... Qb6 {[%clk
0:02:20.8]} 20. Nc6 {[%clk 0:01:24.1]} 20... Qc5 {[%clk 0:01:30.8]} 21. Be3
{[%clk 0:01:20.4]} 1-0

[Event "*** Titled Tuesday Blitz"]
[Site "Chess.com"]
[Date "2021.02.09"]
[Round "3"]
[White "kikydu96"]
[Black "DrVelja"]
[Result "0-1"]
[WhiteElo "2607"]
[BlackElo "2833"]
[TimeControl "180+1"]
[EndTime "10:26:12 PST"]
[Termination "DrVelja won by resignation"]

1. e4 {[%clk 0:03:00.9]} 1... c6 {[%clk 0:03:00.5]} 2. d4 {[%clk 0:03:00]} 2...
d5 {[%clk 0:03:01.4]} 3. Nc3 {[%clk 0:02:59.7]} 3... dxe4 {[%clk 0:03:01.8]} 4.
Nxe4 {[%clk 0:03:00.6]} 4... Nf6 {[%clk 0:03:01.9]} 5. Nxf6+ {[%clk 0:03:00.4]}
5... exf6 {[%clk 0:03:02.8]} 6. c3 {[%clk 0:02:59.2]} 6... Bd6 {[%clk
0:03:03.3]} 7. Bd3 {[%clk 0:02:59.6]} 7... O-O {[%clk 0:03:04.2]} 8. Qc2 {[%clk
0:02:59.5]} 8... Re8+ {[%clk 0:03:05.1]} 9. Ne2 {[%clk 0:03:00]} 9... h5 {[%clk
0:03:06]} 10. Be3 {[%clk 0:02:59.6]} 10... Nd7 {[%clk 0:03:03.4]} 11. O-O-O
{[%clk 0:02:59.3]} 11... b5 {[%clk 0:03:03.8]} 12. Ng3 {[%clk 0:02:54.4]} 12...
h4 {[%clk 0:02:58.2]} 13. Nf5 {[%clk 0:02:53.9]} 13... Bf8 {[%clk 0:02:57.4]}
14. Nxh4 {[%clk 0:02:40.6]} 14... Nb6 {[%clk 0:02:57.4]} 15. Nf5 {[%clk
0:02:30.7]} 15... Qd5 {[%clk 0:02:50]} 16. Kb1 {[%clk 0:02:26.9]} 16... Be6
{[%clk 0:02:47.3]} 17. b3 {[%clk 0:02:21.4]} 17... a5 {[%clk 0:02:42.6]} 18. Be4
{[%clk 0:01:35.5]} 18... Qd7 {[%clk 0:02:41.1]} 19. g4 {[%clk 0:01:27.7]} 19...
a4 {[%clk 0:02:39]} 20. d5 {[%clk 0:00:59.2]} 20... axb3 {[%clk 0:02:30.9]} 21.
axb3 {[%clk 0:00:51.8]} 21... Nxd5 {[%clk 0:02:30.9]} 22. c4 {[%clk 0:00:44.6]}
22... bxc4 {[%clk 0:02:29.1]} 23. Bxd5 {[%clk 0:00:29]} 23... Bxd5 {[%clk
0:02:25.4]} 24. g5 {[%clk 0:00:18.8]} 24... Qb7 {[%clk 0:02:18.9]} 25. Qc3
{[%clk 0:00:13.5]} 25... Be4+ {[%clk 0:02:18.3]} 0-1

[Event "*** Titled Tuesday Blitz"]
[Site "Chess.com"]
[Date "2021.02.09"]
[Round "3"]
[White "yoelpolanco"]
[Black "mr_gustavo"]
[Result "0-1"]
[WhiteElo "2207"]
[BlackElo "2415"]
[TimeControl "180+1"]
[EndTime "10:26:20 PST"]
[Termination "mr_gustavo won by resignation"]

1. d4 {[%clk 0:03:00.9]} 1... Nf6 {[%clk 0:02:59.5]} 2. c4 {[%clk 0:02:59.9]}
2... g6 {[%clk 0:03:00]} 3. Nc3 {[%clk 0:02:59.7]} 3... Bg7 {[%clk 0:03:00.6]}
4. e4 {[%clk 0:02:59.3]} 4... d6 {[%clk 0:03:01.3]} 5. Nf3 {[%clk 0:02:59.6]}
5... O-O {[%clk 0:03:01.7]} 6. h3 {[%clk 0:02:57.3]} 6... e5 {[%clk 0:03:01.2]}
7. d5 {[%clk 0:02:56.2]} 7... Nh5 {[%clk 0:03:01.4]} 8. g3 {[%clk 0:02:47.5]}
8... f5 {[%clk 0:03:01.4]} 9. exf5 {[%clk 0:02:46.6]} 9... gxf5 {[%clk
0:03:01.1]} 10. Be3 {[%clk 0:02:37.6]} 10... f4 {[%clk 0:03:00.2]} 11. gxf4
{[%clk 0:02:36.4]} 11... Nxf4 {[%clk 0:02:59.6]} 12. Qd2 {[%clk 0:02:04.2]}
12... Bf5 {[%clk 0:02:44]} 13. O-O-O {[%clk 0:02:03.1]} 13... Nd7 {[%clk
0:02:31.1]} 14. Rg1 {[%clk 0:01:50.5]} 14... Kh8 {[%clk 0:02:31.1]} 15. h4
{[%clk 0:01:41.3]} 15... Qf6 {[%clk 0:02:28.7]} 16. Ng5 {[%clk 0:01:36.4]} 16...
Nc5 {[%clk 0:02:26]} 17. Bxc5 {[%clk 0:01:26.5]} 17... dxc5 {[%clk 0:02:26.7]}
18. Nce4 {[%clk 0:01:26.2]} 18... Qa6 {[%clk 0:02:19.3]} 19. Ne6 {[%clk
0:01:14.6]} 19... Nxe6 {[%clk 0:02:14.1]} 20. dxe6 {[%clk 0:01:11.6]} 20... Bxe4
{[%clk 0:02:14.2]} 21. Qd7 {[%clk 0:01:02.6]} 21... Bh6+ {[%clk 0:02:09.1]} 22.
Rg5 {[%clk 0:00:58.7]} 22... Bxg5+ {[%clk 0:02:01.9]} 23. hxg5 {[%clk
0:00:59.6]} 23... Qxa2 {[%clk 0:02:01.3]} 24. Bd3 {[%clk 0:00:42.8]} 24... Rxf2
{[%clk 0:01:54.4]} 0-1